[Event "Titled Tuesday Blitz June 27 Early 2023"]
[White "Berezin, Viktor"]
[Black "Zaksaite, Salomeja"]
[WhiteFideId "14107872"]
[BlackFideId "12801496"]
[WhiteElo "2515"]
[BlackElo "2292"]
[Result "1-0"]
[Round "2"]
[TimeControl "180+2"]
[Date "2023.06.27"]
[WhiteClock "0:01:32"]
[BlackClock "0:00:00"]
[Board "188"]

1. d4 {[%clk 0:03:00]}  Nf6 {[%clk 0:02:58]} 2. Nf3 {[%clk 0:03:00]}  g6 {[%clk 0:02:58]} 3. g3 {[%clk 0:03:00]}  Bg7 {[%clk 0:02:59]} 4. Bg2 {[%clk 0:03:01]}  d6 {[%clk 0:02:58]} 5. O-O {[%clk 0:03:02]}  O-O {[%clk 0:02:58]} 6. a4 {[%clk 0:03:02]}  Nc6 {[%clk 0:02:57]} 7. a5 {[%clk 0:03:02]}  e5 {[%clk 0:02:56]} 8. a6 {[%clk 0:03:02]}  e4 {[%clk 0:02:53]} 9. Ng5 {[%clk 0:03:01]}  d5 {[%clk 0:02:53]} 10. c4 {[%clk 0:03:02]}  Re8 {[%clk 0:02:12]} 11. Nc3 {[%clk 0:02:50]}  dxc4 {[%clk 0:01:29]} 12. e3 {[%clk 0:02:41]}  Nb4 {[%clk 0:01:03]} 13. Ngxe4 {[%clk 0:02:35]}  Nxe4 {[%clk 0:00:59]} 14. Bxe4 {[%clk 0:02:34]}  Rb8 {[%clk 0:00:39]} 15. axb7 {[%clk 0:02:29]}  Bxb7 {[%clk 0:00:37]} 16. Bxb7 {[%clk 0:02:30]}  Rxb7 {[%clk 0:00:37]} 17. Qf3 {[%clk 0:02:30]}  c6 {[%clk 0:00:29]} 18. Ra4 {[%clk 0:02:19]}  Nd3 {[%clk 0:00:26]} 19. Rxc4 {[%clk 0:02:15]}  Nxc1 {[%clk 0:00:24]} 20. Rxc1 {[%clk 0:02:16]}  Rxb2 {[%clk 0:00:24]} 21. Qxc6 {[%clk 0:02:16]}  Rf8 {[%clk 0:00:18]} 22. Na4 {[%clk 0:02:04]}  Ra2 {[%clk 0:00:15]} 23. R4c2 {[%clk 0:02:04]}  Rxc2 {[%clk 0:00:10]} 24. Rxc2 {[%clk 0:02:04]}  Qa5 {[%clk 0:00:10]} 25. Kg2 {[%clk 0:02:01]}  h5 {[%clk 0:00:09]} 26. Nc3 {[%clk 0:01:57]}  h4 {[%clk 0:00:09]} 27. gxh4 {[%clk 0:01:43]}  Qh5 {[%clk 0:00:06]} 28. Qe4 {[%clk 0:01:42]}  Rd8 {[%clk 0:00:04]} 29. Ne2 {[%clk 0:01:39]}  Bf6 {[%clk 0:00:04]} 30. Ng3 {[%clk 0:01:36]}  Qxh4 {[%clk 0:00:02]} 31. Qb7 {[%clk 0:01:33]}  Kg7 {[%clk 0:00:00]} 32. Rc7 {[%clk 0:01:32]} 1-0


[Site "https://www.chess.com"]

[Event "Titled Tuesday Blitz June 27 Early 2023"]
[White "Liu, Casper"]
[Black "Mikhaylova, Irina"]
[WhiteFideId "1454153"]
[BlackFideId "4109040"]
[WhiteElo "2513"]
[BlackElo "2289"]
[Result "1-0"]
[Round "2"]
[TimeControl "180+2"]
[Date "2023.06.27"]
[WhiteClock "0:01:09"]
[BlackClock "0:00:09"]
[Board "189"]

1. g3 {[%clk 0:03:00]}  g6 {[%clk 0:02:59]} 2. Bg2 {[%clk 0:03:00]}  Bg7 {[%clk 0:03:00]} 3. Nf3 {[%clk 0:03:00]}  Nf6 {[%clk 0:03:00]} 4. O-O {[%clk 0:03:01]}  O-O {[%clk 0:03:01]} 5. Na3 {[%clk 0:03:00]}  d5 {[%clk 0:02:59]} 6. c4 {[%clk 0:03:00]}  d4 {[%clk 0:02:58]} 7. b4 {[%clk 0:02:59]}  a5 {[%clk 0:02:57]} 8. b5 {[%clk 0:02:58]}  c5 {[%clk 0:02:53]} 9. Nc2 {[%clk 0:02:55]}  Nbd7 {[%clk 0:02:49]} 10. Bb2 {[%clk 0:02:53]}  e5 {[%clk 0:02:48]} 11. d3 {[%clk 0:02:53]}  Rb8 {[%clk 0:02:48]} 12. e3 {[%clk 0:02:48]}  b6 {[%clk 0:02:41]} 13. exd4 {[%clk 0:02:45]}  exd4 {[%clk 0:02:24]} 14. Bc1 {[%clk 0:02:45]}  Bb7 {[%clk 0:02:20]} 15. Bf4 {[%clk 0:02:46]}  Rc8 {[%clk 0:02:19]} 16. Re1 {[%clk 0:02:47]}  Re8 {[%clk 0:02:19]} 17. Qd2 {[%clk 0:02:46]}  Nh5 {[%clk 0:02:03]} 18. Bg5 {[%clk 0:02:34]}  Bf6 {[%clk 0:02:04]} 19. Bh6 {[%clk 0:02:31]}  Bg7 {[%clk 0:02:00]} 20. Bg5 {[%clk 0:02:31]}  Bf6 {[%clk 0:02:01]} 21. Bh6 {[%clk 0:02:32]}  Bg7 {[%clk 0:02:01]} 22. h4 {[%clk 0:02:31]}  Ndf6 {[%clk 0:01:44]} 23. Bg5 {[%clk 0:02:28]}  Rxe1+ {[%clk 0:01:07]} 24. Rxe1 {[%clk 0:02:26]}  Qf8 {[%clk 0:01:08]} 25. Ne5 {[%clk 0:02:12]}  Bxg2 {[%clk 0:01:07]} 26. Kxg2 {[%clk 0:02:13]}  h6 {[%clk 0:01:00]} 27. g4 {[%clk 0:02:08]}  hxg5 {[%clk 0:00:56]} 28. hxg5 {[%clk 0:02:07]}  Re8 {[%clk 0:00:51]} 29. gxf6 {[%clk 0:01:36]}  Nxf6 {[%clk 0:00:33]} 30. g5 {[%clk 0:01:33]}  Qd6 {[%clk 0:00:25]} 31. gxf6 {[%clk 0:01:30]}  Bxf6 {[%clk 0:00:24]} 32. Ng4 {[%clk 0:01:19]}  Rxe1 {[%clk 0:00:21]} 33. Nxf6+ {[%clk 0:01:19]}  Qxf6 {[%clk 0:00:22]} 34. Nxe1 {[%clk 0:01:19]}  Kg7 {[%clk 0:00:18]} 35. Nf3 {[%clk 0:01:19]}  Qf5 {[%clk 0:00:19]} 36. Qe2 {[%clk 0:01:18]}  f6 {[%clk 0:00:18]} 37. Qe7+ {[%clk 0:01:17]}  Kh6 {[%clk 0:00:18]} 38. Qe4 {[%clk 0:01:17]}  Qd7 {[%clk 0:00:14]} 39. Nh4 {[%clk 0:01:16]}  Qf7 {[%clk 0:00:12]} 40. Qc6 {[%clk 0:01:13]}  Kg5 {[%clk 0:00:10]} 41. Nf3+ {[%clk 0:01:11]}  Kf4 {[%clk 0:00:10]} 42. Qxb6 {[%clk 0:01:11]}  Qe7 {[%clk 0:00:09]} 43. Qb8+ {[%clk 0:01:10]}  Kf5 {[%clk 0:00:09]} 44. Nh4+ {[%clk 0:01:09]}  Kg5 {[%clk 0:00:09]} 45. Qg3+ {[%clk 0:01:10]}  Kh6 {[%clk 0:00:09]} 46. Qxg6# {[%clk 0:01:09]} 1-0


[Site "https://www.chess.com"]

[Event "Titled Tuesday Blitz June 27 Early 2023"]
[White "Matyukov, Petr"]
[Black "Sarkar, Justin"]
[WhiteFideId "4103688"]
[BlackFideId "2010011"]
[WhiteElo "2510"]
[BlackElo "2261"]
[Result "1-0"]
[Round "2"]
[TimeControl "180+2"]
[Date "2023.06.27"]
[WhiteClock "0:00:08"]
[BlackClock "0:00:00"]
[Board "192"]

1. d4 {[%clk 0:03:00]}  Nf6 {[%clk 0:02:53]} 2. c4 {[%clk 0:03:00]}  e6 {[%clk 0:02:51]} 3. Nc3 {[%clk 0:03:00]}  d5 {[%clk 0:02:50]} 4. cxd5 {[%clk 0:03:00]}  Nxd5 {[%clk 0:02:50]} 5. e4 {[%clk 0:03:00]}  Nxc3 {[%clk 0:02:48]} 6. bxc3 {[%clk 0:03:01]}  c5 {[%clk 0:02:45]} 7. Rb1 {[%clk 0:03:01]}  Be7 {[%clk 0:02:39]} 8. Nf3 {[%clk 0:03:00]}  O-O {[%clk 0:02:36]} 9. Be2 {[%clk 0:03:00]}  b6 {[%clk 0:02:29]} 10. O-O {[%clk 0:02:54]}  Bb7 {[%clk 0:02:24]} 11. Qc2 {[%clk 0:02:53]}  Nc6 {[%clk 0:02:01]} 12. Rd1 {[%clk 0:02:38]}  cxd4 {[%clk 0:01:55]} 13. Nxd4 {[%clk 0:02:36]}  Qc7 {[%clk 0:01:41]} 14. Be3 {[%clk 0:02:32]}  Nxd4 {[%clk 0:01:37]} 15. Bxd4 {[%clk 0:02:31]}  e5 {[%clk 0:01:33]} 16. Be3 {[%clk 0:02:26]}  Rfd8 {[%clk 0:01:33]} 17. c4 {[%clk 0:02:07]}  Bc5 {[%clk 0:01:16]} 18. Bg5 {[%clk 0:02:01]}  f6 {[%clk 0:01:13]} 19. Bh4 {[%clk 0:02:00]}  Rxd1+ {[%clk 0:01:11]} 20. Rxd1 {[%clk 0:01:59]}  Rd8 {[%clk 0:01:09]} 21. Bg4 {[%clk 0:01:52]}  Rxd1+ {[%clk 0:01:01]} 22. Qxd1 {[%clk 0:01:31]}  Bxe4 {[%clk 0:00:52]} 23. Be6+ {[%clk 0:01:29]}  Kf8 {[%clk 0:00:45]} 24. Qg4 {[%clk 0:01:12]}  Qd6 {[%clk 0:00:34]} 25. h3 {[%clk 0:01:01]}  Bc6 {[%clk 0:00:22]} 26. Bf5 {[%clk 0:00:35]}  Qd4 {[%clk 0:00:13]} 27. Qh5 {[%clk 0:00:25]}  g6 {[%clk 0:00:06]} 28. Qh6+ {[%clk 0:00:23]}  Ke8 {[%clk 0:00:02]} 29. Be6 {[%clk 0:00:13]}  Qf4 {[%clk 0:00:00]} 30. Qxh7 {[%clk 0:00:08]} 1-0


[Site "https://www.chess.com"]

[Event "Titled Tuesday Blitz June 27 Early 2023"]
[White "Bolanos, Fernando"]
[Black "tetrix83"]
[WhiteFideId "3304094"]
[WhiteElo "2260"]
[BlackElo "2510"]
[Result "0-1"]
[Round "2"]
[TimeControl "180+2"]
[Date "2023.06.27"]
[WhiteClock "0:00:05"]
[BlackClock "0:00:18"]
[Board "193"]

1. e4 {[%clk 0:03:00]}  c5 {[%clk 0:02:59]} 2. Nf3 {[%clk 0:03:00]}  e6 {[%clk 0:02:59]} 3. d4 {[%clk 0:02:56]}  cxd4 {[%clk 0:02:59]} 4. Nxd4 {[%clk 0:02:56]}  Nc6 {[%clk 0:02:59]} 5. Nc3 {[%clk 0:02:56]}  Qc7 {[%clk 0:02:58]} 6. Be2 {[%clk 0:02:53]}  a6 {[%clk 0:02:58]} 7. O-O {[%clk 0:02:54]}  Nf6 {[%clk 0:02:56]} 8. Be3 {[%clk 0:02:50]}  Be7 {[%clk 0:02:54]} 9. f4 {[%clk 0:02:30]}  d6 {[%clk 0:02:53]} 10. Qd2 {[%clk 0:02:21]}  O-O {[%clk 0:02:53]} 11. Rad1 {[%clk 0:02:20]}  Re8 {[%clk 0:02:45]} 12. f5 {[%clk 0:02:19]}  Ne5 {[%clk 0:02:33]} 13. fxe6 {[%clk 0:02:09]}  fxe6 {[%clk 0:02:33]} 14. Nf3 {[%clk 0:02:10]}  Nfg4 {[%clk 0:02:27]} 15. Bd4 {[%clk 0:02:06]}  Bf6 {[%clk 0:02:14]} 16. h3 {[%clk 0:01:52]}  Nxf3+ {[%clk 0:02:14]} 17. gxf3 {[%clk 0:01:35]}  Bxd4+ {[%clk 0:01:52]} 18. Qxd4 {[%clk 0:01:36]}  Nf6 {[%clk 0:01:45]} 19. Qxd6 {[%clk 0:01:29]}  Qf7 {[%clk 0:01:43]} 20. Kh2 {[%clk 0:01:23]}  b5 {[%clk 0:01:29]} 21. a4 {[%clk 0:00:50]}  b4 {[%clk 0:01:09]} 22. Qxb4 {[%clk 0:00:46]}  Nh5 {[%clk 0:01:09]} 23. e5 {[%clk 0:00:19]}  Nf4 {[%clk 0:01:00]} 24. Rd4 {[%clk 0:00:19]}  Ng6 {[%clk 0:00:42]} 25. f4 {[%clk 0:00:18]}  Bb7 {[%clk 0:00:40]} 26. Bc4 {[%clk 0:00:17]}  Rab8 {[%clk 0:00:35]} 27. f5 {[%clk 0:00:16]}  Nxe5 {[%clk 0:00:33]} 28. fxe6 {[%clk 0:00:14]}  Nf3+ {[%clk 0:00:30]} 29. Kh1 {[%clk 0:00:08]}  Nxd4+ {[%clk 0:00:29]} 30. Kg1 {[%clk 0:00:06]}  Qg6+ {[%clk 0:00:27]} 31. Kf2 {[%clk 0:00:05]}  Qg2+ {[%clk 0:00:27]} 32. Ke1 {[%clk 0:00:06]}  Nxc2+ {[%clk 0:00:27]} 33. Kd1 {[%clk 0:00:05]}  Nxb4 {[%clk 0:00:18]} 0-1


[Site "https://www.chess.com"]

[Event "Titled Tuesday Blitz June 27 Early 2023"]
[White "Gogolev, Artem"]
[Black "Kyaw Lay Htaik"]
[WhiteFideId "4116615"]
[BlackFideId "13002007"]
[WhiteElo "2507"]
[BlackElo "2259"]
[Result "1-0"]
[Round "2"]
[TimeControl "180+2"]
[Date "2023.06.27"]
[WhiteClock "0:01:00"]
[BlackClock "0:00:39"]
[Board "194"]

1. d4 {[%clk 0:02:59]}  Nf6 {[%clk 0:02:59]} 2. c4 {[%clk 0:02:52]}  e6 {[%clk 0:02:59]} 3. g3 {[%clk 0:02:50]}  Bb4+ {[%clk 0:02:58]} 4. Nd2 {[%clk 0:02:49]}  O-O {[%clk 0:02:55]} 5. Bg2 {[%clk 0:02:48]}  d5 {[%clk 0:02:54]} 6. Qc2 {[%clk 0:02:47]}  Nbd7 {[%clk 0:02:47]} 7. Nf3 {[%clk 0:02:47]}  c5 {[%clk 0:02:44]} 8. a3 {[%clk 0:02:42]}  Bxd2+ {[%clk 0:02:42]} 9. Bxd2 {[%clk 0:02:43]}  cxd4 {[%clk 0:02:33]} 10. cxd5 {[%clk 0:02:38]}  e5 {[%clk 0:02:27]} 11. O-O {[%clk 0:02:36]}  Nb6 {[%clk 0:02:24]} 12. e3 {[%clk 0:02:35]}  dxe3 {[%clk 0:02:21]} 13. Bxe3 {[%clk 0:02:35]}  Nbxd5 {[%clk 0:02:20]} 14. Bc5 {[%clk 0:02:34]}  Re8 {[%clk 0:02:19]} 15. Rad1 {[%clk 0:02:34]}  Be6 {[%clk 0:02:09]} 16. b4 {[%clk 0:02:06]}  Qc7 {[%clk 0:01:59]} 17. Ng5 {[%clk 0:02:00]}  b6 {[%clk 0:01:52]} 18. Bxd5 {[%clk 0:01:53]}  h6 {[%clk 0:01:30]} 19. Nxe6 {[%clk 0:01:51]}  fxe6 {[%clk 0:01:30]} 20. Bxa8 {[%clk 0:01:51]}  Rxa8 {[%clk 0:01:30]} 21. Rc1 {[%clk 0:01:45]}  bxc5 {[%clk 0:01:28]} 22. Qxc5 {[%clk 0:01:41]}  Qxc5 {[%clk 0:01:23]} 23. Rxc5 {[%clk 0:01:32]}  Nd5 {[%clk 0:01:20]} 24. Re1 {[%clk 0:01:30]}  Rd8 {[%clk 0:01:14]} 25. Rxe5 {[%clk 0:01:23]}  Kf7 {[%clk 0:01:14]} 26. Ra5 {[%clk 0:01:19]}  Rd7 {[%clk 0:01:11]} 27. Ra6 {[%clk 0:01:11]}  Nb6 {[%clk 0:01:08]} 28. Rea5 {[%clk 0:01:11]}  Rd1+ {[%clk 0:01:02]} 29. Kg2 {[%clk 0:01:11]}  Nc8 {[%clk 0:00:59]} 30. Rc5 {[%clk 0:01:08]}  Nd6 {[%clk 0:00:54]} 31. Rxa7+ {[%clk 0:01:05]}  Kf6 {[%clk 0:00:52]} 32. Rd7 {[%clk 0:01:05]}  Rd2 {[%clk 0:00:39]} 33. Rc6 {[%clk 0:01:00]} 1-0


[Site "https://www.chess.com"]

[Event "Titled Tuesday Blitz June 27 Early 2023"]
[White "Principe, Gerson"]
[Black "De Souza, Cristiano Gomes"]
[WhiteFideId "3804550"]
[BlackFideId "2151758"]
[WhiteElo "2506"]
[BlackElo "2258"]
[Result "1-0"]
[Round "2"]
[TimeControl "180+2"]
[Date "2023.06.27"]
[WhiteClock "0:00:59"]
[BlackClock "0:01:16"]
[Board "195"]

1. Nf3 {[%clk 0:02:59]}  Nf6 {[%clk 0:02:59]} 2. b3 {[%clk 0:03:00]}  g6 {[%clk 0:02:59]} 3. Bb2 {[%clk 0:03:00]}  Bg7 {[%clk 0:03:00]} 4. e3 {[%clk 0:02:57]}  d6 {[%clk 0:03:00]} 5. d4 {[%clk 0:02:57]}  O-O {[%clk 0:03:01]} 6. Be2 {[%clk 0:02:57]}  Nbd7 {[%clk 0:03:00]} 7. O-O {[%clk 0:02:57]}  c5 {[%clk 0:03:00]} 8. dxc5 {[%clk 0:02:55]}  Nxc5 {[%clk 0:03:00]} 9. c4 {[%clk 0:02:56]}  h6 {[%clk 0:02:58]} 10. Nc3 {[%clk 0:02:54]}  Be6 {[%clk 0:02:56]} 11. Nd4 {[%clk 0:02:54]}  a6 {[%clk 0:02:54]} 12. Nxe6 {[%clk 0:02:54]}  fxe6 {[%clk 0:02:52]} 13. b4 {[%clk 0:02:49]}  Nce4 {[%clk 0:02:50]} 14. Nxe4 {[%clk 0:02:49]}  Nxe4 {[%clk 0:02:49]} 15. Bxg7 {[%clk 0:02:47]}  Kxg7 {[%clk 0:02:49]} 16. Qd4+ {[%clk 0:02:47]}  Nf6 {[%clk 0:02:49]} 17. Rac1 {[%clk 0:02:45]}  Rc8 {[%clk 0:02:47]} 18. Rfd1 {[%clk 0:02:44]}  Qc7 {[%clk 0:02:46]} 19. h4 {[%clk 0:02:39]}  e5 {[%clk 0:02:40]} 20. Qb2 {[%clk 0:02:33]}  Rfd8 {[%clk 0:02:37]} 21. Bd3 {[%clk 0:02:08]}  e6 {[%clk 0:02:34]} 22. Bb1 {[%clk 0:02:06]}  Qf7 {[%clk 0:02:31]} 23. Qe2 {[%clk 0:02:04]}  Rc7 {[%clk 0:02:30]} 24. a3 {[%clk 0:02:01]}  Rcd7 {[%clk 0:02:29]} 25. Qb2 {[%clk 0:01:58]}  Qe7 {[%clk 0:02:23]} 26. g3 {[%clk 0:01:57]}  Rc8 {[%clk 0:02:16]} 27. Qd2 {[%clk 0:01:50]}  Rcd8 {[%clk 0:02:12]} 28. Qc2 {[%clk 0:01:49]}  d5 {[%clk 0:02:10]} 29. Qxg6+ {[%clk 0:01:48]}  Kf8 {[%clk 0:02:05]} 30. Qxh6+ {[%clk 0:01:46]}  Qg7 {[%clk 0:02:05]} 31. Qxg7+ {[%clk 0:01:44]}  Kxg7 {[%clk 0:02:04]} 32. c5 {[%clk 0:01:41]}  d4 {[%clk 0:02:03]} 33. e4 {[%clk 0:01:38]}  Ne8 {[%clk 0:01:59]} 34. Bd3 {[%clk 0:01:36]}  Nc7 {[%clk 0:02:00]} 35. a4 {[%clk 0:01:36]}  Kf6 {[%clk 0:02:00]} 36. Rc2 {[%clk 0:01:33]}  Rg7 {[%clk 0:02:00]} 37. Rb1 {[%clk 0:01:32]}  Rh8 {[%clk 0:01:56]} 38. Kf1 {[%clk 0:01:32]}  Ke7 {[%clk 0:01:55]} 39. b5 {[%clk 0:01:32]}  axb5 {[%clk 0:01:55]} 40. axb5 {[%clk 0:01:33]}  Rf8 {[%clk 0:01:54]} 41. Kg2 {[%clk 0:01:31]}  Rgf7 {[%clk 0:01:51]} 42. Rbb2 {[%clk 0:01:29]}  Rf3 {[%clk 0:01:49]} 43. Rd2 {[%clk 0:01:24]}  Kd8 {[%clk 0:01:41]} 44. Ra2 {[%clk 0:01:23]}  Kd7 {[%clk 0:01:39]} 45. b6 {[%clk 0:01:13]}  Na6 {[%clk 0:01:25]} 46. Bb5+ {[%clk 0:01:11]}  Ke7 {[%clk 0:01:23]} 47. Bxa6 {[%clk 0:01:10]}  bxa6 {[%clk 0:01:23]} 48. Rxa6 {[%clk 0:01:07]}  Kd7 {[%clk 0:01:23]} 49. Ra7+ {[%clk 0:01:00]}  Kc6 {[%clk 0:01:23]} 50. Rc7+ {[%clk 0:01:00]}  Kb5 {[%clk 0:01:23]} 51. b7 {[%clk 0:01:01]}  Kc4 {[%clk 0:01:16]} 52. Rc8 {[%clk 0:00:59]} 1-0


[Site "https://www.chess.com"]

[Event "Titled Tuesday Blitz June 27 Early 2023"]
[White "Bagwe Gaurang"]
[Black "Zampronha, Wladimir Camilo"]
[WhiteFideId "45039895"]
[BlackFideId "2103087"]
[WhiteElo "2505"]
[BlackElo "2257"]
[Result "1-0"]
[Round "2"]
[TimeControl "180+2"]
[Date "2023.06.27"]
[WhiteClock "0:01:58"]
[BlackClock "0:00:05"]
[Board "196"]

1. c4 {[%clk 0:03:00]}  Nf6 {[%clk 0:02:59]} 2. a3 {[%clk 0:02:59]}  e6 {[%clk 0:02:59]} 3. d3 {[%clk 0:02:54]}  d5 {[%clk 0:02:59]} 4. cxd5 {[%clk 0:02:54]}  exd5 {[%clk 0:02:58]} 5. Nf3 {[%clk 0:02:55]}  c5 {[%clk 0:02:57]} 6. g3 {[%clk 0:02:55]}  Nc6 {[%clk 0:02:57]} 7. Bg2 {[%clk 0:02:55]}  d4 {[%clk 0:02:57]} 8. O-O {[%clk 0:02:55]}  Be7 {[%clk 0:02:58]} 9. e4 {[%clk 0:02:51]}  dxe3 {[%clk 0:02:57]} 10. Bxe3 {[%clk 0:02:51]}  O-O {[%clk 0:02:56]} 11. Nc3 {[%clk 0:02:51]}  Bf5 {[%clk 0:02:56]} 12. d4 {[%clk 0:02:50]}  Ng4 {[%clk 0:02:41]} 13. d5 {[%clk 0:02:50]}  Nxe3 {[%clk 0:02:25]} 14. fxe3 {[%clk 0:02:50]}  Nb8 {[%clk 0:02:24]} 15. e4 {[%clk 0:02:50]}  Bg4 {[%clk 0:02:20]} 16. e5 {[%clk 0:02:46]}  Nd7 {[%clk 0:02:10]} 17. Re1 {[%clk 0:02:46]}  c4 {[%clk 0:02:04]} 18. Kh1 {[%clk 0:02:44]}  Nc5 {[%clk 0:02:02]} 19. h3 {[%clk 0:02:38]}  Bxf3 {[%clk 0:01:57]} 20. Qxf3 {[%clk 0:02:39]}  Nd3 {[%clk 0:01:51]} 21. Re2 {[%clk 0:02:39]}  Bc5 {[%clk 0:01:49]} 22. Rf1 {[%clk 0:02:38]}  Bd4 {[%clk 0:01:41]} 23. Ne4 {[%clk 0:02:34]}  Bxe5 {[%clk 0:01:35]} 24. Ng5 {[%clk 0:02:31]}  Bf6 {[%clk 0:01:27]} 25. Ne4 {[%clk 0:02:25]}  Bxb2 {[%clk 0:01:25]} 26. Qh5 {[%clk 0:02:23]}  g6 {[%clk 0:01:03]} 27. Qf3 {[%clk 0:02:22]}  Bg7 {[%clk 0:00:59]} 28. d6 {[%clk 0:02:22]}  Qd7 {[%clk 0:00:55]} 29. Nf6+ {[%clk 0:02:16]}  Bxf6 {[%clk 0:00:54]} 30. Qxf6 {[%clk 0:02:17]}  Rae8 {[%clk 0:00:50]} 31. Re7 {[%clk 0:02:16]}  Qb5 {[%clk 0:00:28]} 32. d7 {[%clk 0:02:03]}  Rxe7 {[%clk 0:00:26]} 33. Qxe7 {[%clk 0:02:04]}  Qb6 {[%clk 0:00:19]} 34. Rxf7 {[%clk 0:02:03]}  Rxf7 {[%clk 0:00:18]} 35. d8=Q+ {[%clk 0:02:03]}  Qxd8 {[%clk 0:00:17]} 36. Qxd8+ {[%clk 0:02:04]}  Kg7 {[%clk 0:00:17]} 37. Qd4+ {[%clk 0:02:04]}  Kf8 {[%clk 0:00:14]} 38. Qxc4 {[%clk 0:02:04]}  Ne5 {[%clk 0:00:14]} 39. Qc8+ {[%clk 0:02:03]}  Kg7 {[%clk 0:00:13]} 40. Qc3 {[%clk 0:02:03]}  Kf6 {[%clk 0:00:12]} 41. Qd4 {[%clk 0:02:00]}  Re7 {[%clk 0:00:05]} 42. Qxa7 {[%clk 0:01:58]} 1-0


[Site "https://www.chess.com"]

[Event "Titled Tuesday Blitz June 27 Early 2023"]
[White "Feinig, Mario"]
[Black "Eynullayev, Altay"]
[WhiteFideId "1618113"]
[BlackFideId "13413562"]
[WhiteElo "2254"]
[BlackElo "2504"]
[Result "1-0"]
[Round "2"]
[TimeControl "180+2"]
[Date "2023.06.27"]
[WhiteClock "0:00:04"]
[BlackClock "0:00:04"]
[Board "197"]

1. c4 {[%clk 0:03:00]}  Nf6 {[%clk 0:02:54]} 2. Nc3 {[%clk 0:03:00]}  e5 {[%clk 0:02:43]} 3. g3 {[%clk 0:02:57]}  d5 {[%clk 0:02:43]} 4. cxd5 {[%clk 0:02:56]}  Nxd5 {[%clk 0:02:43]} 5. Bg2 {[%clk 0:02:56]}  Nb6 {[%clk 0:02:43]} 6. Nf3 {[%clk 0:02:55]}  Be7 {[%clk 0:02:39]} 7. Nxe5 {[%clk 0:02:41]}  O-O {[%clk 0:02:39]} 8. O-O {[%clk 0:02:37]}  c6 {[%clk 0:02:02]} 9. d4 {[%clk 0:02:08]}  N8d7 {[%clk 0:01:42]} 10. Nxd7 {[%clk 0:02:00]}  Bxd7 {[%clk 0:01:39]} 11. d5 {[%clk 0:02:00]}  cxd5 {[%clk 0:01:15]} 12. Nxd5 {[%clk 0:02:01]}  Nxd5 {[%clk 0:01:13]} 13. Qxd5 {[%clk 0:02:02]}  Bc6 {[%clk 0:00:57]} 14. Qxd8 {[%clk 0:02:01]}  Rfxd8 {[%clk 0:00:57]} 15. Bxc6 {[%clk 0:02:01]}  bxc6 {[%clk 0:00:58]} 16. Be3 {[%clk 0:02:01]}  Bf6 {[%clk 0:00:54]} 17. Rab1 {[%clk 0:01:58]}  a5 {[%clk 0:00:40]} 18. Rfc1 {[%clk 0:01:48]}  Ra6 {[%clk 0:00:39]} 19. Rc2 {[%clk 0:01:16]}  Rb8 {[%clk 0:00:31]} 20. b3 {[%clk 0:01:13]}  a4 {[%clk 0:00:29]} 21. Rbc1 {[%clk 0:00:50]}  axb3 {[%clk 0:00:24]} 22. axb3 {[%clk 0:00:51]}  Rxb3 {[%clk 0:00:24]} 23. Rxc6 {[%clk 0:00:50]}  Rxc6 {[%clk 0:00:24]} 24. Rxc6 {[%clk 0:00:51]}  h6 {[%clk 0:00:25]} 25. Bxh6 {[%clk 0:00:47]}  Bd4 {[%clk 0:00:22]} 26. Bf4 {[%clk 0:00:27]}  Rb2 {[%clk 0:00:22]} 27. e3 {[%clk 0:00:24]}  Bf6 {[%clk 0:00:23]} 28. h4 {[%clk 0:00:17]}  Kh7 {[%clk 0:00:21]} 29. Kg2 {[%clk 0:00:16]}  Kg6 {[%clk 0:00:21]} 30. Bg5 {[%clk 0:00:13]}  Kf5 {[%clk 0:00:19]} 31. Bxf6 {[%clk 0:00:11]}  gxf6 {[%clk 0:00:20]} 32. Rc5+ {[%clk 0:00:10]}  Kg6 {[%clk 0:00:20]} 33. Kf3 {[%clk 0:00:10]}  Ra2 {[%clk 0:00:17]} 34. Rc4 {[%clk 0:00:10]}  Rb2 {[%clk 0:00:17]} 35. Rf4 {[%clk 0:00:11]}  Ra2 {[%clk 0:00:16]} 36. Kg4 {[%clk 0:00:11]}  Ra5 {[%clk 0:00:09]} 37. e4 {[%clk 0:00:10]}  Re5 {[%clk 0:00:09]} 38. h5+ {[%clk 0:00:09]}  Kg7 {[%clk 0:00:08]} 39. f3 {[%clk 0:00:06]}  Rg5+ {[%clk 0:00:08]} 40. Kh4 {[%clk 0:00:06]}  Ra5 {[%clk 0:00:08]} 41. Rf5 {[%clk 0:00:03]}  Ra1 {[%clk 0:00:08]} 42. Kg4 {[%clk 0:00:02]}  Rh1 {[%clk 0:00:08]} 43. Kf4 {[%clk 0:00:02]}  Rh3 {[%clk 0:00:07]} 44. g4 {[%clk 0:00:02]}  Rh1 {[%clk 0:00:08]} 45. Rb5 {[%clk 0:00:03]}  Ra1 {[%clk 0:00:08]} 46. Kf5 {[%clk 0:00:02]}  Ra3 {[%clk 0:00:08]} 47. f4 {[%clk 0:00:02]}  Rh3 {[%clk 0:00:08]} 48. Rb6 {[%clk 0:00:02]}  Rc3 {[%clk 0:00:07]} 49. Rxf6 {[%clk 0:00:03]}  Rf3 {[%clk 0:00:07]} 50. e5 {[%clk 0:00:03]}  Rc3 {[%clk 0:00:07]} 51. h6+ {[%clk 0:00:03]}  Kg8 {[%clk 0:00:07]} 52. h7+ {[%clk 0:00:03]}  Kg7 {[%clk 0:00:07]} 53. h8=Q+ {[%clk 0:00:03]}  Kxh8 {[%clk 0:00:04]} 54. Rxf7 {[%clk 0:00:04]} 1-0


[Site "https://www.chess.com"]

[Event "Titled Tuesday Blitz June 27 Early 2023"]
[White "Cesar Maestre, Bernardo"]
[Black "Fudalej, Michal"]
[WhiteFideId "24542547"]
[BlackFideId "1118781"]
[WhiteElo "2504"]
[BlackElo "2249"]
[Result "1-0"]
[Round "2"]
[TimeControl "180+2"]
[Date "2023.06.27"]
[WhiteClock "0:00:09"]
[BlackClock "0:00:01"]
[Board "198"]

1. c4 {[%clk 0:03:00]}  e5 {[%clk 0:02:58]} 2. g3 {[%clk 0:02:59]}  Nc6 {[%clk 0:02:58]} 3. Bg2 {[%clk 0:02:59]}  g6 {[%clk 0:02:59]} 4. Nc3 {[%clk 0:02:58]}  Bg7 {[%clk 0:02:59]} 5. e3 {[%clk 0:02:59]}  d6 {[%clk 0:03:00]} 6. Nge2 {[%clk 0:03:00]}  Be6 {[%clk 0:03:00]} 7. b3 {[%clk 0:02:58]}  f5 {[%clk 0:02:58]} 8. d4 {[%clk 0:02:58]}  Bf7 {[%clk 0:02:50]} 9. O-O {[%clk 0:02:57]}  Nf6 {[%clk 0:02:48]} 10. Bb2 {[%clk 0:02:55]}  O-O {[%clk 0:02:48]} 11. dxe5 {[%clk 0:02:47]}  dxe5 {[%clk 0:02:46]} 12. Rc1 {[%clk 0:02:39]}  Qe7 {[%clk 0:02:28]} 13. Qc2 {[%clk 0:02:31]}  Rad8 {[%clk 0:02:25]} 14. Rfd1 {[%clk 0:02:29]}  Rfe8 {[%clk 0:01:29]} 15. Nd5 {[%clk 0:02:23]}  Nxd5 {[%clk 0:01:25]} 16. cxd5 {[%clk 0:02:24]}  Nb4 {[%clk 0:01:23]} 17. Qxc7 {[%clk 0:02:17]}  Nxd5 {[%clk 0:01:14]} 18. Qa5 {[%clk 0:01:53]}  b6 {[%clk 0:01:11]} 19. Qa4 {[%clk 0:01:53]}  Rd7 {[%clk 0:00:51]} 20. e4 {[%clk 0:00:49]}  fxe4 {[%clk 0:00:44]} 21. Bxe4 {[%clk 0:00:50]}  Red8 {[%clk 0:00:44]} 22. Ba3 {[%clk 0:00:47]}  Qf6 {[%clk 0:00:32]} 23. Rc6 {[%clk 0:00:40]}  Nc3 {[%clk 0:00:25]} 24. Rxd7 {[%clk 0:00:28]}  Nxa4 {[%clk 0:00:22]} 25. Rxf6 {[%clk 0:00:27]}  Rxd7 {[%clk 0:00:22]} 26. Rxf7 {[%clk 0:00:22]}  Kxf7 {[%clk 0:00:20]} 27. bxa4 {[%clk 0:00:22]}  Rd2 {[%clk 0:00:15]} 28. Kf1 {[%clk 0:00:18]}  Rd1+ {[%clk 0:00:13]} 29. Kg2 {[%clk 0:00:18]}  Rd2 {[%clk 0:00:14]} 30. Kf3 {[%clk 0:00:19]}  Ke6 {[%clk 0:00:13]} 31. Nc3 {[%clk 0:00:17]}  Bh6 {[%clk 0:00:10]} 32. Bb4 {[%clk 0:00:15]}  Rb2 {[%clk 0:00:09]} 33. Ba3 {[%clk 0:00:12]}  Rd2 {[%clk 0:00:07]} 34. Bc1 {[%clk 0:00:10]}  Rc2 {[%clk 0:00:01]} 35. Bxc2 {[%clk 0:00:08]}  Bxc1 {[%clk 0:00:01]} 36. Bb3+ {[%clk 0:00:09]}  Kf6 {[%clk 0:00:01]} 37. Ne4+ {[%clk 0:00:09]}  Kf5 {[%clk 0:00:01]} 38. g4# {[%clk 0:00:09]} 1-0


[Site "https://www.chess.com"]